[Event "Hungarian Youth-ch U10 2022"]
[Site "Eger"]
[Date "2022.07.26"]
[Round "4.5"]
[White "Hegedus, Bernat"]
[Black "Hangay, Oliver"]
[Result "1/2-1/2"]
[ECO "A57"]
[WhiteElo "1491"]
[BlackElo "1695"]
[Annotator "NA RC COMBH"]
[PlyCount "128"]
[EventDate "2022.07.21"]
[EventType "tourn"]
[EventCountry "HUN"]
[SourceTitle "playchess.com"]
[Source "ChessBase"]
[SourceQuality "1"]
[TimeControl "40/5400+30:1800+30"]

1. d4 {[%emt 0:00:45]} Nf6 {[%emt 0:00:39]} 2. c4 {[%emt 0:00:15]} c5 {[%emt 0:00:05]} 3. d5 {[%emt 0:00:27]} b5 {[%emt 0:00:05]} 4. Qc2 {[%emt 0:00:13]} d6 {[%emt 0:03:46]} 5. Nc3 {[%emt 0:02:15]} b4 {[%emt 0:09:51]} 6. Nb1 {[%emt 0:01:20]} g6 {[%emt 0:03:19]} 7. e4 {[%emt 0:01:39]} Bg7 {[%emt 0:01:31]} 8. Bd3 {[%emt 0:01:37]} O-O {[%emt 0:01:47]} 9. Nf3 {[%emt 0:01:08]} Nbd7 {[%emt 0:02:56]} 10. h3 {[%emt 0:01:34]} a5 {[%emt 0:09:06]} 11. Nbd2 {[%emt 0:01:50]} a4 {[%emt 0:03:01]} 12. Rb1 {[%emt 0:02:58]} Nh5 {[%emt 0:07:05]} 13. O-O {[%emt 0:02:12]} Nb6 {[%emt 0:05:14]} 14. Re1 {[%emt 0:03:00]} Qc7 {[%emt 0:04:16]} 15. Nf1 {[%emt 0:03:31]} Nd7 {[%emt 0:02:41]} 16. Bd2 {[%emt 0:01:50]} Ne5 {[%emt 0:01:16]} 17. Nxe5 {[%emt 0:01:01]} Bxe5 {[%emt 0:00:30]} 18. Nh2 {[%emt 0:03:18]} Bd7 {[%emt 0:02:55]} 19. Nf3 {[%emt 0:04:15]} Bg7 {[%emt 0:01:20]} 20. Re2 {[%emt 0:01:55]} b3 {[%emt 0:03:22]} 21. axb3 {[%emt 0:00:37]} axb3 {[%emt 0:00:23]} 22. Qd1 {[%emt 0:01:40]} Rfb8 {[%emt 0:02:59]} 23. Qe1 {[%emt 0:00:43]} Ra2 {[%emt 0:02:34]} 24. Bc1 {[%emt 0:01:14]} Qa5 {[%emt 0:02:25]} 25. e5 {[%emt 0:02:42]} Qxe1+ {[%emt 0:01:54]} 26. Rxe1 {[%emt 0:00:28]} Bf8 {[%emt 0:01:22]} 27. g4 {[%emt 0:04:57]} Ng7 {[%emt 0:00:20]} 28. Nd2 {[%emt 0:00:42]} Ne8 {[%emt 0:07:41]} 29. f4 {[%emt 0:00:27]} Ra5 {[%emt 0:06:10]} 30. Re3 {[%emt 0:00:54]} Bg7 {[%emt 0:00:30]} 31. Be2 {[%emt 0:00:31]} g5 {[%emt 0:03:13]} 32. Nxb3 {[%emt 0:01:21]} gxf4 {[%emt 0:01:25]} 33. exd6 {[%emt 0:01:34]} fxe3 {[%emt 0:02:00]} 34. Nxa5 {[%emt 0:00:12]} exd6 {[%emt 0:00:49]} 35. b3 {[%emt 0:01:12]} Bc3 {[%emt 0:01:35]} 36. Nc6 {[%emt 0:00:08]} Bxc6 {[%emt 0:00:05]} 37. dxc6 {[%emt 0:00:07]} Bd4 {[%emt 0:00:19]} 38. Kg2 {[%emt 0:00:29]} Nc7 {[%emt 0:01:06]} 39. Kf3 {[%emt 0:00:35]} Rb6 {[%emt 0:02:45]} 40. Bxe3 {[%emt 0:00:00]} Bxe3 {[%emt 0:00:00]} 41. Kxe3 {[%emt 0:00:29]} Rxc6 {[%emt 0:00:32]} 42. b4 {[%emt 0:00:17]} cxb4 {[%emt 0:01:14]} 43. Rxb4 {[%emt 0:03:04]} d5 {[%emt 0:04:51]} 44. Kd4 {[%emt 0:01:58]} dxc4 {[%emt 0:01:24]} 45. Rxc4 {[%emt 0:01:56]} Ne6+ {[%emt 0:01:02]} 46. Ke5 Rxc4 {[%emt 0:01:23]} 47. Bxc4 {[%emt 0:00:54]} Ng5 {[%emt 0:00:37]} 48. Bf1 {[%emt 0:00:22]} Kg7 {[%emt 0:00:32]} 49. Kf5 {[%emt 0:00:19]} f6 {[%emt 0:00:20]} 50. h4 {[%emt 0:00:37]} Nf3 {[%emt 0:00:34]} 51. h5 {[%emt 0:00:30]} h6 {[%emt 0:00:38]} 52. Ke6 {[%emt 0:00:33]} Ng5+ {[%emt 0:00:15]} 53. Kf5 {[%emt 0:00:21]} Nf3 {[%emt 0:00:04]} 54. Ba6 {[%emt 0:00:14]} Nd4+ {[%emt 0:00:31]} 55. Ke4 {[%emt 0:00:19]} Ne6 {[%emt 0:00:12]} 56. Bc8 {[%emt 0:00:24]} Ng5+ {[%emt 0:00:09]} 57. Kf4 {[%emt 0:00:17]} Nf7 {[%emt 0:00:10]} 58. Be6 {[%emt 0:00:14]} Nd6 {[%emt 0:00:18]} 59. Bf5 {[%emt 0:00:22]} Nxf5 {[%emt 0:00:58]} 60. Kxf5 {[%emt 0:02:52]} Kf7 {[%emt 0:00:48]} 61. Kf4 {[%emt 0:01:36]} Ke7 {[%emt 0:00:22]} 62. Ke4 {[%emt 0:00:23]} Ke6 {[%emt 0:00:10]} 63. Kf4 {[%emt 0:00:09]} Ke7 {[%emt 0:00:19]} 64. Ke4 {[%emt 0:00:15]} Ke6 {[%emt 0:00:15]} 1/2-1/2

[Event "Hungarian Youth-ch U10 2022"]
[Site "Eger"]
[Date "2022.07.26"]
[Round "4.6"]
[White "Illes-Nagy, Nora"]
[Black "Wang, Luomeng"]
[Result "1-0"]
[ECO "D02"]
[WhiteElo "1402"]
[BlackElo "1078"]
[Annotator "NA RC COMBH"]
[PlyCount "121"]
[EventDate "2022.07.21"]
[EventType "tourn"]
[EventCountry "HUN"]
[SourceTitle "playchess.com"]
[Source "ChessBase"]
[SourceQuality "1"]
[TimeControl "40/5400+30:1800+30"]

1. d4 {[%emt 0:00:33]} d5 {[%emt 0:00:44]} 2. Nf3 {[%emt 0:00:35]} Nf6 {[%emt 0:00:47]} 3. c3 {[%emt 0:00:47]} Bf5 {[%emt 0:01:29]} 4. Bf4 {[%emt 0:02:01]} c5 {[%emt 0:02:23]} 5. e3 {[%emt 0:01:38]} Nc6 {[%emt 0:02:27]} 6. Bd3 {[%emt 0:02:41]} Bxd3 {[%emt 0:01:02]} 7. Qxd3 {[%emt 0:00:12]} c4 {[%emt 0:00:55]} 8. Qc2 {[%emt 0:00:46]} e6 {[%emt 0:01:36]} 9. Nbd2 {[%emt 0:01:26]} Bd6 {[%emt 0:02:07]} 10. Bxd6 {[%emt 0:01:41]} Qxd6 {[%emt 0:00:16]} 11. O-O {[%emt 0:01:28]} O-O {[%emt 0:01:54]} 12. Rfe1 {[%emt 0:02:31]} b5 {[%emt 0:03:41]} 13. a4 {[%emt 0:01:54]} b4 {[%emt 0:01:59]} 14. e4 {[%emt 0:04:40]} dxe4 {[%emt 0:04:48]} 15. Nxc4 {[%emt 0:01:24]} Qd5 {[%emt 0:01:15]} 16. Nfd2 {[%emt 0:00:11]} Ne7 {[%emt 0:04:55]} 17. cxb4 {[%emt 0:01:45]} Rac8 {[%emt 0:01:34]} 18. b3 {[%emt 0:01:09]} Qxd4 {[%emt 0:02:10]} 19. Nxe4 {[%emt 0:00:53]} Nxe4 {[%emt 0:00:15]} 20. Qxe4 {[%emt 0:00:14]} Qc3 {[%emt 0:02:21]} 21. Qe3 {[%emt 0:03:00]} Qxe3 {[%emt 0:01:06]} 22. Nxe3 {[%emt 0:01:59]} Nc6 {[%emt 0:01:35]} 23. b5 {[%emt 0:03:25]} Nd4 {[%emt 0:02:09]} 24. b4 {[%emt 0:00:45]} Nc2 {[%emt 0:00:50]} 25. Nxc2 {[%emt 0:00:05]} Rxc2 {[%emt 0:00:15]} 26. Red1 {[%emt 0:00:48]} Rfc8 {[%emt 0:00:39]} 27. h3 g6 {[%emt 0:00:41]} 28. Rd7 {[%emt 0:02:02]} Rc1+ {[%emt 0:00:56]} 29. Rxc1 {[%emt 0:00:16]} Rxc1+ {[%emt 0:00:07]} 30. Kh2 {[%emt 0:00:02]} Rc4 {[%emt 0:00:17]} 31. Rxa7 {[%emt 0:00:20]} Rxb4 {[%emt 0:00:32]} 32. Kg3 Kg7 {[%emt 0:02:15]} 33. Kf3 {[%emt 0:02:13]} h6 {[%emt 0:02:26]} 34. Ke3 {[%emt 0:00:38]} e5 {[%emt 0:02:16]} 35. Kd3 {[%emt 0:00:56]} e4+ {[%emt 0:00:28]} 36. Kc3 {[%emt 0:00:21]} Rb1 {[%emt 0:00:38]} 37. Kd4 {[%emt 0:01:01]} Rb4+ {[%emt 0:01:53]} 38. Kc5 {[%emt 0:01:21]} Rb2 {[%emt 0:00:38]} 39. Re7 {[%emt 0:04:45]} Rxf2 {[%emt 0:00:44]} 40. Rxe4 {[%emt 0:00:00]} Rxg2 {[%emt 0:00:00]} 41. b6 {[%emt 0:00:34]} Kf6 {[%emt 0:02:22]} 42. b7 {[%emt 0:00:21]} Rc2+ {[%emt 0:00:28]} 43. Rc4 {[%emt 0:00:21]} Rb2 {[%emt 0:00:24]} 44. Rb4 {[%emt 0:00:04]} Rxb4 {[%emt 0:00:38]} 45. Kxb4 {[%emt 0:00:08]} Kg5 {[%emt 0:00:07]} 46. b8=Q {[%emt 0:00:08]} f5 {[%emt 0:00:28]} 47. Qg3+ {[%emt 0:00:13]} Kh5 {[%emt 0:00:47]} 48. Qh2 {[%emt 0:00:39]} f4 {[%emt 0:00:11]} 49. Qxf4 {[%emt 0:00:18]} g5 {[%emt 0:00:13]} 50. Qg4+ {[%emt 0:00:07]} Kg6 {[%emt 0:00:06]} 51. h4 {[%emt 0:00:08]} Kf6 {[%emt 0:00:21]} 52. hxg5+ {[%emt 0:00:05]} hxg5 {[%emt 0:01:44]} 53. a5 {[%emt 0:00:39]} Ke7 {[%emt 0:00:08]} 54. Qxg5+ {[%emt 0:00:05]} Kd7 {[%emt 0:00:48]} 55. Qf6 {[%emt 0:00:06]} Kc7 {[%emt 0:00:25]} 56. Qb6+ {[%emt 0:00:06]} Kc8 {[%emt 0:00:33]} 57. a6 {[%emt 0:00:04]} Kd7 {[%emt 0:00:20]} 58. a7 {[%emt 0:00:07]} Ke7 {[%emt 0:00:06]} 59. a8=Q {[%emt 0:00:09]} Kf7 {[%emt 0:00:11]} 60. Qaa7+ {[%emt 0:00:05]} Ke8 {[%emt 0:00:12]} 61. Qbb8# {[%emt 0:00:03]} 1-0

[Event "Hungarian Youth-ch U10 2022"]
[Site "Eger"]
[Date "2022.07.26"]
[Round "4.7"]
[White "Hangay, Lilla"]
[Black "Csiszar, Vivien"]
[Result "1-0"]
[ECO "B47"]
[WhiteElo "1169"]
[BlackElo "1068"]
[Annotator "NA RC COMBH"]
[PlyCount "37"]
[EventDate "2022.07.21"]
[EventType "tourn"]
[EventCountry "HUN"]
[SourceTitle "playchess.com"]
[Source "ChessBase"]
[SourceQuality "1"]
[TimeControl "40/5400+30:1800+30"]

1. e4 {[%emt 0:00:32]} c5 {[%emt 0:00:35]} 2. Nf3 {[%emt 0:00:16]} Nc6 {[%emt 0:00:11]} 3. d4 {[%emt 0:00:32]} cxd4 {[%emt 0:00:20]} 4. Nxd4 {[%emt 0:00:30]} e6 {[%emt 0:00:21]} 5. Nc3 {[%emt 0:00:34]} Qc7 {[%emt 0:00:18]} 6. g3 {[%emt 0:00:46]} a6 {[%emt 0:00:26]} 7. Bg2 {[%emt 0:00:39]} h5 {[%emt 0:00:42]} 8. h4 {[%emt 0:08:05]} Nf6 {[%emt 0:01:48]} 9. O-O {[%emt 0:01:02]} Ng4 {[%emt 0:01:05]} 10. Bf3 {[%emt 0:03:13]} Nxd4 {[%emt 0:05:04]} 11. Qxd4 {[%emt 0:01:55]} Bc5 {[%emt 0:01:18]} 12. Bf4 {[%emt 0:06:27]} e5 {[%emt 0:02:42]} 13. Nd5 {[%emt 0:10:02]} Qd6 {[%emt 0:04:23]} 14. Qc3 {[%emt 0:03:09]} Bd4 {[%emt 0:18:19]} 15. Qxd4 {[%emt 0:00:48]} exf4 {[%emt 0:01:10]} 16. Qxg7 {[%emt 0:04:40]} Rf8 {[%emt 0:22:44]} 17. Bxg4 {[%emt 0:01:08]} hxg4 {[%emt 0:00:35]} 18. Rad1 {[%emt 0:03:13]} Qb8 {[%emt 0:00:45]} 19. Qf6 {[%emt 0:00:37]} 1-0

[Event "Hungarian Youth-ch U10 2022"]
[Site "Eger"]
[Date "2022.07.26"]
[Round "4.8"]
[White "Ferenczy, Nora"]
[Black "Biro, Csilla"]
[Result "1-0"]
[ECO "D35"]
[WhiteElo "1051"]
[BlackElo "1215"]
[Annotator "NA RC COMBH"]
[PlyCount "105"]
[EventDate "2022.07.21"]
[EventType "tourn"]
[EventCountry "HUN"]
[SourceTitle "playchess.com"]
[Source "ChessBase"]
[SourceQuality "1"]
[TimeControl "40/5400+30:1800+30"]

1. d4 {[%emt 0:00:32]} e6 {[%emt 0:00:50]} 2. c4 {[%emt 0:00:12]} d5 {[%emt 0:00:17]} 3. Nc3 {[%emt 0:00:24]} Nf6 {[%emt 0:01:10]} 4. cxd5 {[%emt 0:00:16]} exd5 {[%emt 0:00:24]} 5. Bg5 {[%emt 0:00:14]} Be7 {[%emt 0:01:44]} 6. e3 {[%emt 0:00:27]} Nbd7 {[%emt 0:01:13]} 7. Qc2 {[%emt 0:01:53]} O-O {[%emt 0:00:52]} 8. Bd3 {[%emt 0:01:01]} h6 {[%emt 0:03:00]} 9. Bf4 {[%emt 0:03:17]} a6 {[%emt 0:03:30]} 10. Nf3 {[%emt 0:04:30]} c5 {[%emt 0:10:30]} 11. dxc5 {[%emt 0:03:05]} Nxc5 {[%emt 0:02:20]} 12. Be2 {[%emt 0:10:19]} Re8 {[%emt 0:10:40]} 13. O-O {[%emt 0:02:42]} Bg4 {[%emt 0:04:25]} 14. h3 {[%emt 0:05:43]} Bh5 {[%emt 0:02:29]} 15. Rfd1 {[%emt 0:12:43]} Qd7 {[%emt 0:11:49]} 16. Nxd5 {[%emt 0:10:11]} Nxd5 {[%emt 0:09:24]} 17. Ne5 {[%emt 0:06:37]} Bxe2 {[%emt 0:18:09]} 18. Nxd7 {[%emt 0:00:52]} Bxd1 {[%emt 0:00:17]} 19. Rxd1 {[%emt 0:01:14]} Nxf4 {[%emt 0:00:49]} 20. exf4 {[%emt 0:02:08]} Rac8 {[%emt 0:01:12]} 21. Nxc5 {[%emt 0:00:47]} Bxc5 22. Qb3 {[%emt 0:02:16]} b6 {[%emt 0:01:18]} 23. Qd3 a5 24. a3 {[%emt 0:04:50]} Be7 {[%emt 0:01:53]} 25. Re1 {[%emt 0:01:21]} Red8 {[%emt 0:00:38]} 26. Qf3 {[%emt 0:01:40]} Bc5 {[%emt 0:00:30]} 27. Rd1 {[%emt 0:00:52]} Bd4 {[%emt 0:01:13]} 28. Qb3 {[%emt 0:03:44]} Rc7 {[%emt 0:01:06]} 29. Re1 {[%emt 0:02:01]} Bc5 {[%emt 0:01:40]} 30. Qb5 {[%emt 0:01:41]} Rcc8 {[%emt 0:01:33]} 31. b4 {[%emt 0:01:22]} axb4 {[%emt 0:01:00]} 32. axb4 {[%emt 0:03:15]} Bd4 {[%emt 0:02:03]} 33. Qh5 Bc3 34. Re7 {[%emt 0:01:40]} Rf8 {[%emt 0:01:38]} 35. Qb5 {[%emt 0:03:41]} Bd4 {[%emt 0:01:01]} 36. Qe2 {[%emt 0:02:43]} Rfd8 {[%emt 0:02:01]} 37. Kh2 {[%emt 0:02:49]} Kf8 {[%emt 0:01:17]} 38. Qe4 {[%emt 0:02:12]} Bxf2 {[%emt 0:02:30]} 39. Qb7 {[%emt 0:01:00]} Bd4 {[%emt 0:02:54]} 40. Rxf7+ {[%emt 0:00:00]} Kg8 {[%emt 0:00:00]} 41. Rd7 {[%emt 0:02:35]} Bc3 {[%emt 0:07:03]} 42. Qd5+ {[%emt 0:00:12]} Kh7 {[%emt 0:01:31]} 43. Rxd8 Rc7 44. Qf5+ {[%emt 0:01:16]} g6 {[%emt 0:01:01]} 45. Rd7+ {[%emt 0:00:40]} Rxd7 {[%emt 0:00:26]} 46. Qxd7+ {[%emt 0:00:09]} Bg7 {[%emt 0:00:24]} 47. Qb7 {[%emt 0:00:21]} g5 {[%emt 0:00:17]} 48. fxg5 {[%emt 0:00:18]} hxg5 {[%emt 0:00:35]} 49. Qxb6 {[%emt 0:00:46]} Kg8 {[%emt 0:00:12]} 50. Qd8+ {[%emt 0:00:08]} Kh7 {[%emt 0:00:41]} 51. Qxg5 {[%emt 0:01:01]} Kh8 {[%emt 0:00:18]} 52. Qxg7+ {[%emt 0:00:01]} Kxg7 53. b5 1-0

[Event "Hungarian Youth-ch U10 2022"]
[Site "Eger"]
[Date "2022.07.27"]
[Round "5.1"]
[White "Hangay, Oliver"]
[Black "Morovan-Szabo, Lorinc"]
[Result "1-0"]
[ECO "C75"]
[WhiteElo "1695"]
[BlackElo "1232"]
[Annotator "NA RC COMBH"]
[PlyCount "119"]
[EventDate "2022.07.21"]
[EventType "tourn"]
[EventCountry "HUN"]
[SourceTitle "playchess.com"]
[Source "ChessBase"]
[SourceQuality "1"]
[TimeControl "40/5400+30:1800+30"]

1. e4 {[%emt 0:00:42]} e5 {[%emt 0:00:47]} 2. Nf3 {[%emt 0:00:09]} Nc6 {[%emt 0:00:23]} 3. Bb5 {[%emt 0:00:51]} a6 {[%emt 0:00:49]} 4. Ba4 {[%emt 0:00:12]} d6 {[%emt 0:00:21]} 5. c3 {[%emt 0:04:35]} Bd7 {[%emt 0:01:56]} 6. O-O {[%emt 0:01:44]} Nf6 {[%emt 0:00:40]} 7. Re1 {[%emt 0:03:25]} g6 {[%emt 0:01:16]} 8. d4 {[%emt 0:02:57]} Bg7 {[%emt 0:02:51]} 9. Bxc6 {[%emt 0:17:49]} Bxc6 {[%emt 0:01:17]} 10. dxe5 {[%emt 0:01:36]} dxe5 {[%emt 0:02:25]} 11. Qxd8+ {[%emt 0:01:45]} Rxd8 {[%emt 0:00:31]} 12. Nxe5 {[%emt 0:01:03]} Bd7 {[%emt 0:02:55]} 13. Na3 {[%emt 0:11:07]} O-O {[%emt 0:01:30]} 14. Nec4 {[%emt 0:08:48]} Bc6 {[%emt 0:04:15]} 15. f3 {[%emt 0:02:08]} Rfe8 {[%emt 0:01:12]} 16. Na5 {[%emt 0:02:26]} Re6 {[%emt 0:02:03]} 17. Bf4 {[%emt 0:03:42]} Rd7 {[%emt 0:02:28]} 18. Rad1 {[%emt 0:02:04]} b6 {[%emt 0:05:03]} 19. N5c4 {[%emt 0:06:52]} Nh5 {[%emt 0:01:42]} 20. Rxd7 {[%emt 0:01:09]} Bxd7 {[%emt 0:00:39]} 21. Bxc7 {[%emt 0:02:11]} Bf8 {[%emt 0:01:15]} 22. Rd1 {[%emt 0:02:55]} Ba4 {[%emt 0:02:47]} 23. Rd8 {[%emt 0:01:24]} Kg7 {[%emt 0:00:48]} 24. Bd6 {[%emt 0:03:53]} Bxd6 {[%emt 0:03:53]} 25. Rxd6 {[%emt 0:00:59]} Rxd6 {[%emt 0:00:40]} 26. Nxd6 {[%emt 0:00:01]} Bc6 {[%emt 0:00:37]} 27. g3 {[%emt 0:01:21]} Nf6 {[%emt 0:00:16]} 28. Nac4 {[%emt 0:00:28]} Nd7 {[%emt 0:01:32]} 29. Kf2 {[%emt 0:03:11]} Kf6 {[%emt 0:00:41]} 30. Ne3 {[%emt 0:01:18]} Ke6 {[%emt 0:01:38]} 31. Ndc4 {[%emt 0:01:38]} Bb7 {[%emt 0:01:16]} 32. Ke2 {[%emt 0:00:56]} Ba8 {[%emt 0:01:41]} 33. b4 {[%emt 0:00:36]} b5 {[%emt 0:00:20]} 34. Na5 {[%emt 0:00:34]} Nb6 {[%emt 0:00:22]} 35. Nb3 {[%emt 0:00:31]} Na4 {[%emt 0:01:34]} 36. Kd3 {[%emt 0:00:41]} Kd6 {[%emt 0:00:56]} 37. Kd4 {[%emt 0:00:14]} f6 {[%emt 0:00:50]} 38. f4 {[%emt 0:01:07]} h5 {[%emt 0:01:26]} 39. c4 {[%emt 0:00:37]} Nb2 {[%emt 0:01:32]} 40. c5+ {[%emt 0:00:00]} Kd7 {[%emt 0:00:00]} 41. Nd2 {[%emt 0:04:59]} Ke7 {[%emt 0:02:10]} 42. h3 {[%emt 0:02:21]} Bb7 {[%emt 0:00:18]} 43. g4 {[%emt 0:01:22]} Bc8 {[%emt 0:02:02]} 44. gxh5 {[%emt 0:00:18]} gxh5 {[%emt 0:00:10]} 45. h4 {[%emt 0:00:13]} Bb7 {[%emt 0:01:06]} 46. Ndf1 {[%emt 0:00:22]} Nc4 {[%emt 0:01:18]} 47. Nxc4 {[%emt 0:00:07]} bxc4 {[%emt 0:00:27]} 48. Ng3 {[%emt 0:00:08]} f5 {[%emt 0:01:01]} 49. Nxf5+ {[%emt 0:01:13]} Kf6 {[%emt 0:00:11]} 50. Nd6 {[%emt 0:00:16]} Bc6 {[%emt 0:00:12]} 51. Kxc4 {[%emt 0:00:29]} Bxe4 {[%emt 0:00:25]} 52. Nxe4+ {[%emt 0:00:06]} Kf5 {[%emt 0:00:02]} 53. c6 {[%emt 0:00:10]} Kxe4 {[%emt 0:00:10]} 54. c7 {[%emt 0:00:06]} Kxf4 {[%emt 0:00:07]} 55. c8=Q {[%emt 0:00:12]} Kg3 {[%emt 0:00:07]} 56. Qg8+ {[%emt 0:00:09]} Kxh4 {[%emt 0:00:15]} 57. Kd4 {[%emt 0:00:28]} a5 {[%emt 0:00:11]} 58. Ke4 {[%emt 0:00:15]} axb4 {[%emt 0:00:03]} 59. Kf4 {[%emt 0:00:10]} Kh3 60. Qg3# 1-0

[Event "Hungarian Youth-ch U10 2022"]
[Site "Eger"]
[Date "2022.07.27"]
[Round "5.2"]
[White "Hegedus, Zsombor"]
[Black "Hegedus, Bernat"]
[Result "0-1"]
[ECO "B55"]
[WhiteElo "1348"]
[BlackElo "1491"]
[Annotator "NA RC COMBH"]
[PlyCount "80"]
[EventDate "2022.07.21"]
[EventType "tourn"]
[EventCountry "HUN"]
[SourceTitle "playchess.com"]
[Source "ChessBase"]
[SourceQuality "1"]
[TimeControl "40/5400+30:1800+30"]

1. e4 {[%emt 0:00:33]} c5 {[%emt 0:00:56]} 2. Nf3 {[%emt 0:00:24]} d6 {[%emt 0:00:36]} 3. d4 {[%emt 0:00:50]} cxd4 {[%emt 0:01:06]} 4. Nxd4 {[%emt 0:00:44]} Nf6 {[%emt 0:01:15]} 5. f3 {[%emt 0:01:13]} e5 {[%emt 0:00:56]} 6. Bb5+ {[%emt 0:01:05]} Nbd7 {[%emt 0:01:35]} 7. Nf5 {[%emt 0:00:55]} a6 {[%emt 0:00:49]} 8. Ba4 b5 {[%emt 0:00:43]} 9. Bb3 {[%emt 0:01:04]} Nb6 {[%emt 0:00:38]} 10. O-O {[%emt 0:01:24]} Bxf5 {[%emt 0:01:38]} 11. exf5 {[%emt 0:01:00]} Be7 {[%emt 0:03:18]} 12. Nc3 {[%emt 0:06:25]} d5 {[%emt 0:07:36]} 13. Re1 {[%emt 0:08:09]} Qc7 {[%emt 0:12:55]} 14. Bg5 {[%emt 0:13:18]} d4 {[%emt 0:05:45]} 15. Bxf6 {[%emt 0:03:20]} Bxf6 {[%emt 0:02:04]} 16. Ne4 {[%emt 0:01:40]} Be7 {[%emt 0:02:34]} 17. Rc1 {[%emt 0:03:23]} Nc4 {[%emt 0:04:28]} 18. Bxc4 {[%emt 0:03:06]} bxc4 {[%emt 0:03:16]} 19. Nd2 {[%emt 0:05:47]} Bg5 {[%emt 0:05:27]} 20. Rb1 {[%emt 0:05:29]} O-O {[%emt 0:02:32]} 21. Qe2 {[%emt 0:06:22]} Rac8 {[%emt 0:02:32]} 22. Rbd1 {[%emt 0:02:56]} f6 {[%emt 0:09:57]} 23. Kh1 {[%emt 0:02:36]} Rfd8 {[%emt 0:03:29]} 24. Ne4 {[%emt 0:02:24]} Bf4 {[%emt 0:01:55]} 25. Nf2 {[%emt 0:04:13]} Qa5 {[%emt 0:01:04]} 26. a3 {[%emt 0:03:34]} c3 {[%emt 0:01:20]} 27. b3 {[%emt 0:00:37]} Bd2 {[%emt 0:01:31]} 28. Rf1 {[%emt 0:01:27]} Qxa3 {[%emt 0:00:25]} 29. Ne4 {[%emt 0:01:46]} Bf4 {[%emt 0:00:38]} 30. Ra1 {[%emt 0:01:48]} Qb4 {[%emt 0:04:16]} 31. Ra4 {[%emt 0:02:37]} Qb5 {[%emt 0:02:47]} 32. Qxb5 {[%emt 0:01:12]} axb5 {[%emt 0:00:08]} 33. Rb4 {[%emt 0:01:19]} d3 {[%emt 0:00:16]} 34. cxd3 {[%emt 0:00:50]} c2 {[%emt 0:00:11]} 35. g3 {[%emt 0:00:11]} c1=Q {[%emt 0:00:23]} 36. Rxc1 {[%emt 0:00:03]} Rxc1+ {[%emt 0:00:12]} 37. Kg2 {[%emt 0:00:08]} Rc2+ {[%emt 0:00:21]} 38. Kh3 {[%emt 0:00:18]} Be3 {[%emt 0:00:47]} 39. Rxb5 {[%emt 0:00:15]} Bg1 {[%emt 0:00:23]} 40. Rb6 {[%emt 0:00:00]} Rxh2+ {[%emt 0:00:00]} 0-1

[Event "Hungarian Youth-ch U10 2022"]
[Site "Eger"]
[Date "2022.07.27"]
[Round "5.3"]
[White "Brieber, Benedek"]
[Black "Szollosi, Balazs"]
[Result "1/2-1/2"]
[ECO "A46"]
[WhiteElo "1369"]
[BlackElo "1423"]
[Annotator "NA RC COMBH"]
[PlyCount "58"]
[EventDate "2022.07.21"]
[EventType "tourn"]
[EventCountry "HUN"]
[SourceTitle "playchess.com"]
[Source "ChessBase"]
[SourceQuality "1"]
[TimeControl "40/5400+30:1800+30"]

1. d4 {[%emt 0:00:33]} Nf6 {[%emt 0:00:44]} 2. Nf3 {[%emt 0:00:42]} d5 {[%emt 0:00:22]} 3. c4 {[%emt 0:01:57]} c6 {[%emt 0:00:36]} 4. Bg5 {[%emt 0:00:36]} Ne4 {[%emt 0:00:52]} 5. Bf4 {[%emt 0:00:22]} Bf5 {[%emt 0:00:50]} 6. Nbd2 {[%emt 0:00:27]} Nxd2 {[%emt 0:00:26]} 7. Qxd2 {[%emt 0:01:10]} Nd7 {[%emt 0:00:32]} 8. e3 {[%emt 0:01:41]} a5 {[%emt 0:00:19]} 9. a3 {[%emt 0:00:28]} e6 {[%emt 0:00:48]} 10. Be2 {[%emt 0:00:26]} dxc4 {[%emt 0:00:18]} 11. Bxc4 {[%emt 0:00:51]} Be7 {[%emt 0:00:47]} 12. O-O {[%emt 0:00:19]} O-O {[%emt 0:00:18]} 13. Ne5 {[%emt 0:08:27]} Nxe5 {[%emt 0:00:59]} 14. Bxe5 {[%emt 0:00:20]} Bf6 {[%emt 0:00:58]} 15. Bxf6 {[%emt 0:00:32]} Qxf6 {[%emt 0:00:13]} 16. Bd3 {[%emt 0:01:18]} Bxd3 {[%emt 0:00:22]} 17. Qxd3 {[%emt 0:00:25]} Rfd8 {[%emt 0:00:31]} 18. Qb3 {[%emt 0:00:57]} Qe7 {[%emt 0:05:13]} 19. Rac1 {[%emt 0:01:24]} h6 {[%emt 0:05:44]} 20. Rc5 {[%emt 0:01:06]} Rd5 {[%emt 0:01:08]} 21. Rfc1 {[%emt 0:00:40]} Rxc5 {[%emt 0:02:35]} 22. Rxc5 {[%emt 0:01:12]} Qc7 {[%emt 0:01:18]} 23. g3 {[%emt 0:03:01]} Rd8 {[%emt 0:04:41]} 24. Qc3 {[%emt 0:01:25]} Rd5 {[%emt 0:00:55]} 25. Rxd5 {[%emt 0:00:37]} exd5 {[%emt 0:00:10]} 26. Kf1 {[%emt 0:00:37]} b6 {[%emt 0:00:36]} 27. b4 {[%emt 0:01:24]} axb4 {[%emt 0:00:31]} 28. axb4 {[%emt 0:00:15]} Qb7 {[%emt 0:00:42]} 29. Qa3 {[%emt 0:00:52]} g6 {[%emt 0:03:59]} 1/2-1/2